fUSD/lending_fUSD_20250818
["ID","MTS","AMOUNT","RATE_DAILY","PERIOD"]
[380019970,1755479447104,-2000.0,0.00012616,2]
[380019971,1755479447113,-1500.0,0.00012616,2]
[380019972,1755479447122,-2000.0,0.00012616,2]
[380019973,1755479447131,-2000.0,0.00012616,2]
[380019974,1755479447142,-923.66241236,0.00012616,2]
[380019975,1755479447151,-2000.0,0.00012616,2]
[380019976,1755479447160,-1538.53329607,0.00012616,2]
[380019977,1755479447169,-150.0,0.00012617,2]
[380019978,1755479447178,-150.0,0.00012632,2]
[380019979,1755479447187,-743.82192492,0.00012637,6]
[380019980,1755479447197,-758.0,0.00012637,2]
[380019981,1755479447206,-1686.0,0.00012637,2]
[380019982,1755479447215,-445.0,0.00012637,2]
[380019983,1755479447224,-500.0,0.00012637,2]
[380019984,1755479447234,-1000.0,0.00012637,2]
[380019985,1755479447243,-575.0,0.00012637,2]
[380019986,1755479447253,-500.0,0.00012637,2]
[380019987,1755479447263,-500.0,0.00012637,2]
[380019988,1755479447272,-408.41112461,0.00012637,2]
[380019989,1755479447282,-150.0,0.00012637,2]
[380019990,1755479447291,-150.0,0.00012643,2]
[380019991,1755479447303,-994.77,0.00012643,2]
[380019992,1755479447312,-254.8738922,0.00012644,2]
[380019993,1755479447321,-450.0272593,0.00012644,2]
[380019994,1755479447331,-500.0,0.00012644,2]
[380019995,1755479447340,-500.0,0.00012644,2]
[380019996,1755479447350,-287.34,0.00012651,2]
[380019997,1755479447360,-150.0,0.00012659,2]
[380019998,1755479447369,-150.0,0.00012659,2]
[380019999,1755479447378,-150.0,0.00012665,2]
[380020000,1755479447387,-150.0,0.0001268,2]
[380020001,1755479447397,-150.0,0.00012684,2]
[380020002,1755479447406,-150.0,0.00012688,2]
[380020003,1755479447416,-1822.0,0.000127,2]
[380020004,1755479447425,-150.0,0.00012701,2]
[380020005,1755479447435,-1000.0,0.00012702,2]
[380020006,1755479447443,-2600.0,0.00012702,2]
[380020007,1755479447453,-1800.0,0.00012702,2]
[380020008,1755479447462,-150.0,0.00012708,2]
[380020009,1755479447472,-150.0,0.00012714,2]
[380020010,1755479447481,-150.0,0.00012741,2]
[380020011,1755479447490,-278.64336222,0.00012745,2]
[380020012,1755479447501,-150.0,0.00012749,2]
[380020013,1755479447510,-150.0,0.00012771,2]
[380020014,1755479447519,-150.0,0.00012772,2]
[380020015,1755479447528,-150.0,0.00012777,2]
[380020016,1755479447537,-1085.0,0.00012803,2]
[380020017,1755479447546,-150.0,0.00012815,2]
[380020018,1755479447555,-150.0,0.00012816,2]
[380020019,1755479447564,-151.0,0.00012825,2]
[380020020,1755479447574,-151.0,0.00012825,2]
[380020021,1755479447583,-150.0,0.00012831,2]
[380020022,1755479447592,-150.0,0.00012851,2]
[380020023,1755479447602,-150.0,0.00012856,2]
[380020024,1755479447611,-150.0,0.00012861,2]
[380020025,1755479447620,-150.0,0.00012862,2]
[380020026,1755479447629,-1077.89,0.00012877,2]
[380020027,1755479447639,-151.0,0.000129,2]
[380020028,1755479447648,-151.0,0.000129,2]
[380020029,1755479447657,-151.0,0.000129,2]
[380020030,1755479447666,-151.0,0.000129,2]
[380020031,1755479447675,-151.0,0.000129,2]
[380020032,1755479447685,-262.493572,0.000129,2]
[380020033,1755479447695,-151.0,0.000129,2]
[380020034,1755479447704,-151.167547,0.000129,2]
[380020035,1755479447713,-1009.406077,0.000129,2]
[380020036,1755479447723,-359.46586,0.000129,2]
[380020037,1755479447731,-2767.761148,0.000129,2]
[380020038,1755479447741,-151.0,0.000129,2]
[380020039,1755479447751,-151.0,0.000129,2]
[380020040,1755479447760,-1009.406077,0.000129,2]
[380020041,1755479447769,-359.46586,0.000129,2]
[380020042,1755479447782,-2767.761148,0.000129,2]
[380020043,1755479447791,-151.0,0.000129,2]
[380020044,1755479447801,-151.0,0.000129,2]
[380020045,1755479447811,-151.0,0.000129,2]
[380020046,1755479447821,-151.0,0.000129,2]
[380020047,1755479447831,-151.0,0.000129,2]
[380020048,1755479447840,-212.168901,0.000129,2]
[380020049,1755479447850,-212.168901,0.000129,2]
[380020050,1755479447860,-159.783791,0.000129,2]
[380020051,1755479447869,-474.566646,0.000129,2]
[380020052,1755479447879,-237.284095,0.000129,2]
[380020053,1755479447888,-474.566646,0.000129,2]
[380020054,1755479447897,-237.284095,0.000129,2]
[380020055,1755479447907,-590.428737,0.000129,2]
[380020056,1755479447916,-590.428737,0.000129,2]
[380020057,1755479447925,-1000.0,0.000129,2]
[380020058,1755479447935,-1000.0,0.000129,2]
[380020059,1755479447946,-150.0,0.00012904,2]
[380020060,1755479447956,-758.0,0.00012911,2]
[380020061,1755479447965,-1686.0,0.00012911,2]
[380020062,1755479447975,-445.0,0.00012911,2]
[380020063,1755479447984,-500.0,0.00012911,2]
[380020064,1755479447992,-1000.0,0.00012911,2]
[380020065,1755479448002,-575.0,0.00012911,2]
[380020066,1755479448012,-500.0,0.00012911,2]
[380020067,1755479448022,-500.0,0.00012911,2]
[380020068,1755479448031,-500.0,0.00012918,2]
[380020069,1755479448041,-500.0,0.00012918,2]
[380020070,1755479448050,-150.0,0.00012921,2]
[380020071,1755479448059,-150.0,0.00012934,2]
[380020072,1755479448067,-150.0,0.00012957,2]
[380020073,1755479448076,-150.0,0.00012986,2]
[380020074,1755479448085,-156.0,0.00012995,2]
[380020075,1755479448095,-504.119,0.00013,2]
[380020076,1755479448104,-7000.0,0.00013,2]
[380020077,1755479448114,-1000.0,0.00013,2]
[380020078,1755479448126,-150.0,0.00013001,2]
[380020079,1755479448135,-843.70243781,0.00013003,2]
[380020080,1755479448146,-160.0,0.00013003,2]
[380020081,1755479448158,-458.37053472,0.00013003,2]
[380020082,1755479448167,-211.9855225,0.00013003,2]
[380020083,1755479448179,-150.0,0.00013029,2]
[380020084,1755479448190,-150.0,0.0001303,2]
[380020085,1755479448200,-150.0,0.00013057,2]
[380020086,1755479448210,-433.0,0.00013088,2]
[380020087,1755479448220,-2000.0,0.00013097,2]
[380020088,1755479448232,-200.0,0.00013097,2]
[380020089,1755479448243,-3111.0,0.00013098,2]
[380020090,1755479448253,-311.1,0.00013098,2]
[380020091,1755479448263,-160.0,0.00013098,2]
[380020092,1755479448273,-257.91778498,0.00013098,2]
[380020093,1755479448283,-150.0,0.00013125,2]
[380020094,1755479448292,-150.0,0.00013128,2]
[380020095,1755479448302,-150.0,0.00013147,2]
[380020096,1755479448311,-150.0,0.00013151,2]
[380020097,1755479448322,-2500.0,0.00013164,2]
[380020098,1755479448331,-2500.0,0.00013164,2]
[380020099,1755479448340,-1497.52210135,0.00013164,2]
[380020100,1755479448350,-437.34472527,0.00013164,2]
[380020101,1755479448359,-2500.0,0.00013164,2]
[380020102,1755479448368,-743.82192492,0.00013175,8]
[380020103,1755479448377,-758.0,0.00013185,2]
[380020104,1755479448387,-1686.0,0.00013185,2]
[380020105,1755479448396,-445.0,0.00013185,2]
[380020106,1755479448406,-500.0,0.00013185,2]
[380020107,1755479448415,-1000.0,0.00013185,2]
[380020108,1755479448425,-575.0,0.00013185,2]
[380020109,1755479448434,-500.0,0.00013185,2]
[380020110,1755479448443,-500.0,0.00013185,2]
[380020111,1755479448452,-994.77,0.00013191,2]
[380020112,1755479448463,-500.0,0.00013192,2]
[380020113,1755479448474,-500.0,0.00013192,2]
[380020114,1755479448483,-150.0,0.00013196,2]
[380020115,1755479448492,-150.0,0.00013233,2]
[380020116,1755479448502,-150.0,0.00013234,2]
[380020117,1755479448512,-500.0,0.00013246,2]
[380020118,1755479448521,-500.0,0.00013246,2]
[380020119,1755479448531,-500.0,0.00013246,2]
[380020120,1755479448540,-500.0,0.00013246,2]
[380020121,1755479448549,-500.0,0.00013246,2]
[380020122,1755479448558,-500.0,0.00013246,2]
[380020123,1755479448568,-500.0,0.00013246,2]
[380020124,1755479448578,-500.0,0.00013246,2]
[380020125,1755479448587,-500.0,0.00013246,2]
[380020126,1755479448596,-500.0,0.00013246,2]
[380020127,1755479448605,-500.0,0.00013246,2]
[380020128,1755479448614,-500.0,0.00013246,2]
[380020129,1755479448623,-500.0,0.00013246,2]
[380020130,1755479448632,-500.0,0.00013246,2]
[380020131,1755479448642,-500.0,0.00013246,2]
[380020132,1755479448651,-500.0,0.00013246,2]
[380020133,1755479448660,-500.0,0.00013246,2]
[380020134,1755479448670,-500.0,0.00013246,2]
[380020135,1755479448679,-500.0,0.00013246,2]
[380020136,1755479448689,-500.0,0.00013246,2]
[380020137,1755479448698,-500.0,0.00013246,2]
[380020138,1755479448707,-500.0,0.00013246,2]
[380020139,1755479448716,-500.0,0.00013246,2]
[380020140,1755479448725,-500.0,0.00013246,2]
[380020141,1755479448734,-500.0,0.00013246,2]
[380020142,1755479448744,-500.0,0.00013246,2]
[380020143,1755479448753,-500.0,0.00013246,2]
[380020144,1755479448763,-500.0,0.00013246,2]
[380020145,1755479448774,-500.0,0.00013246,2]
[380020146,1755479448784,-500.0,0.00013246,2]
[380020147,1755479448793,-500.0,0.00013246,2]
[380020148,1755479448802,-500.0,0.00013246,2]
[380020149,1755479448811,-500.0,0.00013246,2]
[380020150,1755479448822,-500.0,0.00013246,2]
[380020151,1755479448831,-500.0,0.00013246,2]
[380020152,1755479448841,-500.0,0.00013246,2]
[380020153,1755479448853,-500.0,0.00013246,2]
[380020154,1755479448862,-500.0,0.00013246,2]
[380020155,1755479448871,-500.0,0.00013246,2]
[380020156,1755479448880,-500.0,0.00013246,2]
[380020157,1755479448890,-500.0,0.00013246,2]
[380020158,1755479448900,-500.0,0.00013246,2]
[380020159,1755479448909,-500.0,0.00013246,2]
[380020160,1755479448919,-500.0,0.00013246,2]
[380020161,1755479448928,-500.0,0.00013246,2]
[380020162,1755479448938,-500.0,0.00013246,2]
[380020163,1755479448948,-500.0,0.00013246,2]
[380020164,1755479448957,-500.0,0.00013246,2]
[380020165,1755479448967,-500.0,0.00013246,2]
[380020166,1755479448976,-500.0,0.00013246,2]
[380020167,1755479448985,-500.0,0.00013246,2]
[380020168,1755479448995,-500.0,0.00013246,2]
[380020169,1755479449004,-500.0,0.00013246,2]
[380020170,1755479449013,-500.0,0.00013246,2]
[380020171,1755479449023,-500.0,0.00013246,2]
[380020172,1755479449032,-500.0,0.00013246,2]
[380020173,1755479449041,-500.0,0.00013246,2]
[380020174,1755479449051,-500.0,0.00013246,2]
[380020175,1755479449060,-401.11,0.00013246,2]
[380020176,1755479449069,-500.0,0.00013246,2]
[380020177,1755479449078,-500.0,0.00013246,2]
[380020178,1755479449087,-500.0,0.00013246,2]
[380020179,1755479449097,-339.55,0.00013246,2]
[380020180,1755479449106,-500.0,0.00013246,2]
[380020181,1755479449116,-202.3,0.00013256,2]
[380020182,1755479449126,-579.0,0.00013259,2]
[380020183,1755479449135,-150.0,0.00013261,2]
[380020184,1755479449145,-150.0,0.00013286,2]
[380020185,1755479449154,-269.96,0.00013297,2]
[380020186,1755479449163,-150.0,0.00013321,2]
[380020187,1755479449172,-150.0,0.00013325,2]
[380020188,1755479449181,-579.0,0.00013352,2]
[380020189,1755479449190,-150.0,0.00013356,2]
[380020190,1755479449200,-150.0,0.00013366,2]
[380020191,1755479449209,-150.0,0.00013368,2]
[380020192,1755479449219,-24907.88175581,0.00013368,2]
[380020193,1755479449228,-151.0,0.00013373,2]
[380020194,1755479449238,-151.0,0.00013373,2]
[380020195,1755479449247,-150.0,0.00013374,2]
[380020196,1755479449256,-41755.19230852,0.00013378,2]
[380020197,1755479449266,-579.0,0.00013395,2]
[380020198,1755479449276,-150.0,0.00013396,2]
[380020199,1755479449286,-150.0,0.00013396,2]
[380020200,1755479449296,-150.0,0.00013397,2]
[380020201,1755479449305,-150.0,0.00013399,2]
[380020202,1755479449316,-1000.0,0.00013403,2]
[380020203,1755479449326,-150.0,0.00013417,2]
[380020204,1755479449335,-179.28,0.00013425,2]
[380020205,1755479449345,-579.0,0.00013427,2]
[380020206,1755479449355,-150.0,0.00013429,2]
[380020207,1755479449364,-150.0,0.00013458,2]
[380020208,1755479449374,-758.0,0.00013459,2]
[380020209,1755479449384,-1686.0,0.00013459,2]
[380020210,1755479449394,-445.0,0.00013459,2]
[380020211,1755479449404,-500.0,0.00013459,2]
[380020212,1755479449414,-1000.0,0.00013459,2]
[380020213,1755479449424,-575.0,0.00013459,2]
[380020214,1755479449433,-355.67179168,0.00013459,2]
[380020215,1755479449442,-500.0,0.00013459,2]
[380020216,1755479449452,-510.53654344,0.00013466,2]
[380020217,1755479449462,-500.0,0.00013466,2]
[380020218,1755479449472,-151.0,0.00013468,2]
[380020219,1755479449481,-292.1143134,0.00013469,2]
[380020220,1755479449491,-1000.0,0.00013469,2]
[380020221,1755479449500,-1085.0,0.00013477,2]
[380020222,1755479449509,-579.0,0.00013478,2]
[380020223,1755479449518,-151.0,0.00013479,2]
[380020224,1755479449527,-579.0,0.00013482,2]
[380020225,1755479449536,-579.0,0.00013483,2]
[380020226,1755479449546,-1000.0,0.000135,2]
[380020227,1755479449555,-150.0,0.00013505,2]
[380020228,1755479449564,-157.0,0.00013515,2]
[380020229,1755479449574,-151.0,0.00013516,2]
[380020230,1755479449583,-150.0,0.00013531,2]
[380020231,1755479449592,-150.0,0.00013534,2]
[380020232,1755479449602,-150.0,0.00013543,2]
[380020233,1755479449611,-151.0,0.0001355,2]
[380020234,1755479449620,-151.0,0.0001355,2]
[380020235,1755479449629,-579.0,0.00013561,2]
[380020236,1755479449639,-151.0,0.00013569,2]
[380020237,1755479449648,-151.0,0.00013579,2]
[380020238,1755479449658,-151.0,0.00013579,2]
[380020239,1755479449667,-150.0,0.00013581,2]
[380020240,1755479449676,-1000.0,0.00013599,2]
[380020241,1755479449686,-410927.16,0.000136,2]
[380020242,1755479449695,-17009.78,0.000136,2]
[380020243,1755479449704,-1000.0,0.000136,2]
[380020244,1755479449714,-620.759057,0.000136,2]
[380020245,1755479449724,-620.759057,0.000136,2]
[380020246,1755479449734,-151.0,0.000136,2]
[380020247,1755479449743,-244.031451,0.000136,2]
[380020248,1755479449752,-332.030382,0.000136,2]
[380020249,1755479449761,-244.031451,0.000136,2]
[380020250,1755479449772,-279.594595,0.000136,2]
[380020251,1755479449785,-332.030382,0.000136,2]
[380020252,1755479449794,-279.594595,0.000136,2]
[380020253,1755479449803,-724.36716,0.000136,2]
[380020254,1755479449812,-151.0,0.000136,2]
[380020255,1755479449822,-724.36716,0.000136,2]
[380020256,1755479449831,-151.0,0.000136,2]
[380020257,1755479449840,-151.0,0.000136,2]
[380020258,1755479449849,-1040.944647,0.000136,2]
[380020259,1755479449858,-1040.944647,0.000136,2]
[380020260,1755479449868,-259.455088,0.000136,2]
[380020261,1755479449877,-259.455088,0.000136,2]
[380020262,1755479449886,-151.0,0.000136,2]
[380020263,1755479449895,-151.0,0.000136,2]
[380020264,1755479449904,-151.0,0.000136,2]
[380020265,1755479449913,-151.0,0.000136,2]
[380020266,1755479449921,-186.798984,0.000136,2]
[380020267,1755479449930,-190.057222,0.000136,2]
[380020268,1755479449939,-186.798984,0.000136,2]
[380020269,1755479449949,-190.057222,0.000136,2]
[380020270,1755479449959,-395.530632,0.000136,2]
[380020271,1755479449968,-161.024265,0.000136,2]
[380020272,1755479449977,-395.530632,0.000136,2]
[380020273,1755479449986,-161.024265,0.000136,2]
[380020274,1755479449995,-151.0,0.000136,2]
[380020275,1755479450004,-151.0,0.000136,2]
[380020276,1755479450013,-4186.50180278,0.00013658,2]
[380020277,1755479450022,-150.0,0.00013669,2]
[380020278,1755479450032,-150.0,0.00013677,2]
[380020279,1755479450041,-711.93,0.00013677,2]
[380020280,1755479450050,-579.0,0.00013678,2]
[380020281,1755479450059,-8036.25937713,0.00013679,2]
[380020282,1755479450069,-579.0,0.00013679,2]
[380020283,1755479450078,-150.0,0.00013682,2]
[380020284,1755479450087,-1000.0,0.00013692,2]
[380020285,1755479450097,-97114.78901064,0.00013697,2]
[380020286,1755479450107,-8110.38191576,0.00013697,2]
[380020287,1755479450116,-9999.98,0.00013697,2]
[380020288,1755479450125,-400.0,0.00013698,2]
[380020289,1755479450135,-400.0,0.00013698,2]
[380020290,1755479450144,-400.0,0.00013698,2]
[380020291,1755479450153,-400.0,0.00013698,2]
[380020292,1755479450162,-400.0,0.00013698,2]
[380020293,1755479450173,-400.0,0.00013698,2]
[380020294,1755479450182,-400.0,0.00013698,2]
[380020295,1755479450191,-400.0,0.00013698,2]
[380020296,1755479450200,-500.0,0.00013698,2]
[380020297,1755479450210,-400.0,0.00013698,2]
[380020298,1755479450220,-400.0,0.00013698,2]
[380020299,1755479450230,-400.0,0.00013698,2]
[380020300,1755479450239,-400.0,0.00013698,2]
[380020301,1755479450248,-400.0,0.00013698,2]
[380020302,1755479450257,-400.0,0.00013698,2]
[380020303,1755479450267,-400.0,0.00013698,2]
[380020304,1755479450276,-400.0,0.00013698,2]
[380020305,1755479450425,-400.0,0.00013698,2]
[380020306,1755479450435,-400.0,0.00013698,2]
[380020307,1755479450446,-400.0,0.00013698,2]
[380020308,1755479450463,-398.0,0.00013698,2]
[380020309,1755479450494,-400.0,0.00013698,2]
[380020310,1755479450504,-151.0,0.00013698,2]
[380020311,1755479450513,-400.0,0.00013698,2]
[380020312,1755479450523,-400.0,0.00013698,2]
[380020313,1755479450532,-400.0,0.00013698,2]
[380020314,1755479450541,-400.0,0.00013698,2]
[380020315,1755479450551,-500.0,0.00013698,2]
[380020316,1755479450560,-500.0,0.00013698,2]
[380020317,1755479450569,-500.0,0.00013698,2]
[380020318,1755479450578,-500.0,0.00013698,2]
[380020319,1755479450588,-500.0,0.00013698,2]
[380020320,1755479450597,-500.0,0.00013698,2]
[380020321,1755479450607,-500.0,0.00013698,2]
[380020322,1755479450616,-500.0,0.00013698,2]
[380020323,1755479450625,-500.0,0.00013698,2]
[380020324,1755479450634,-500.0,0.00013698,2]
[380020325,1755479450643,-572.89312606,0.00013698,2]
[380020326,1755479450653,-400.0,0.00013698,2]
[380020327,1755479450662,-400.0,0.00013698,2]
[380020328,1755479450672,-300.0,0.00013698,2]
[380020329,1755479450681,-400.0,0.00013698,2]
[380020330,1755479450691,-400.0,0.00013698,2]
[380020331,1755479450702,-400.0,0.00013698,2]
[380020332,1755479450712,-400.0,0.00013698,2]
[380020333,1755479450725,-400.0,0.00013698,2]
[380020334,1755479450735,-400.0,0.00013698,2]
[380020335,1755479450744,-400.0,0.00013698,2]
[380020336,1755479450754,-400.0,0.00013698,2]
[380020337,1755479450763,-400.0,0.00013698,2]
[380020338,1755479450776,-400.0,0.00013698,2]
[380020339,1755479450785,-400.0,0.00013698,2]
[380020340,1755479450795,-395.32549792,0.00013698,2]
[380020341,1755479450805,-400.0,0.00013698,2]
[380020342,1755479450815,-400.0,0.00013698,2]
[380020343,1755479450827,-151.90402,0.00013698,2]
[380020344,1755479450836,-398.0,0.00013698,2]
[380020345,1755479450847,-400.0,0.00013698,2]
[380020346,1755479450857,-400.0,0.00013698,2]
[380020347,1755479450869,-400.0,0.00013698,2]
[380020348,1755479450878,-400.0,0.00013698,2]
[380020349,1755479450888,-400.0,0.00013698,2]
[380020350,1755479450898,-400.0,0.00013698,2]
[380020351,1755479450907,-500.0,0.00013698,2]
[380020352,1755479450917,-400.0,0.00013698,2]
[380020353,1755479450926,-500.0,0.00013698,2]
[380020354,1755479450935,-578.23,0.00013698,2]
[380020355,1755479450945,-400.0,0.00013698,2]
[380020356,1755479450955,-400.0,0.00013698,2]
[380020357,1755479450965,-681.01,0.00013698,2]
[380020358,1755479450977,-2033.86,0.00013698,2]
[380020359,1755479450987,-400.0,0.00013698,2]
[380020360,1755479450996,-400.0,0.00013698,2]
[380020361,1755479451005,-400.0,0.00013698,2]
[380020362,1755479451014,-716.92,0.00013698,2]
[380020363,1755479451023,-400.0,0.00013698,2]
[380020364,1755479451033,-400.0,0.00013698,2]
[380020365,1755479451042,-400.0,0.00013698,2]
[380020366,1755479451051,-1923.92,0.00013698,2]
[380020367,1755479451060,-400.0,0.00013698,2]
[380020368,1755479451069,-486.1,0.00013698,2]
[380020369,1755479451079,-400.0,0.00013698,2]
[380020370,1755479451088,-400.0,0.00013698,2]
[380020371,1755479451098,-1657.14,0.00013698,2]
[380020372,1755479451107,-400.0,0.00013698,2]
[380020373,1755479451116,-607.07,0.00013698,2]
[380020374,1755479451125,-400.0,0.00013698,2]
[380020375,1755479451137,-400.0,0.00013698,2]
[380020376,1755479451146,-745.85,0.00013698,2]
[380020377,1755479451156,-1209.67,0.00013698,2]
[380020378,1755479451165,-400.0,0.00013698,2]
[380020379,1755479451174,-151.0,0.00013698,2]
[380020380,1755479451183,-400.0,0.00013698,2]
[380020381,1755479451194,-400.0,0.00013698,2]
[380020382,1755479451204,-400.0,0.00013698,2]
[380020383,1755479451214,-151.0,0.00013698,2]
[380020384,1755479451226,-406.55808023,0.00013698,2]
[380020385,1755479451236,-151.0,0.00013698,2]
[380020386,1755479451247,-465.39,0.00013698,2]
[380020387,1755479451256,-400.0,0.00013698,2]
[380020388,1755479451266,-908.14,0.00013698,2]
[380020389,1755479451276,-400.0,0.00013698,2]
[380020390,1755479451285,-400.0,0.00013698,2]
[380020391,1755479451294,-400.0,0.00013698,2]
[380020392,1755479451304,-1063.0,0.00013698,2]
[380020393,1755479451313,-500.0,0.00013698,2]
[380020394,1755479451323,-400.0,0.00013698,2]
[380020395,1755479451332,-400.0,0.00013698,2]
[380020396,1755479451341,-941.87,0.00013698,2]
[380020397,1755479451351,-400.0,0.00013698,2]
[380020398,1755479451360,-500.0,0.00013698,2]
[380020399,1755479451369,-192.311841,0.00013698,2]
[380020400,1755479451379,-500.0,0.00013698,2]
[380020401,1755479451397,-500.0,0.00013698,2]
[380020402,1755479451414,-400.0,0.00013698,2]
[380020403,1755479451432,-400.0,0.00013698,2]
[380020404,1755479451441,-400.0,0.00013698,2]
[380020405,1755479451450,-192.311841,0.00013698,2]
[380020406,1755479451460,-400.0,0.00013698,2]
[380020407,1755479451469,-400.0,0.00013698,2]
[380020408,1755479451480,-400.0,0.00013698,2]
[380020409,1755479451489,-898.55,0.00013698,2]
[380020410,1755479451498,-400.0,0.00013698,2]
[380020411,1755479451507,-400.0,0.00013698,2]
[380020412,1755479451516,-400.0,0.00013698,2]
[380020413,1755479451525,-594.67,0.00013698,2]
[380020414,1755479451534,-486.4,0.00013698,2]
[380020415,1755479451543,-195.26528259,0.00013698,2]
[380020416,1755479451552,-1270.14,0.00013698,2]
[380020417,1755479451561,-400.0,0.00013698,2]
[380020418,1755479451570,-400.0,0.00013698,2]
[380020419,1755479451579,-400.0,0.00013698,2]
[380020420,1755479451589,-400.0,0.00013698,2]
[380020421,1755479451598,-400.0,0.00013698,2]
[380020422,1755479451607,-400.0,0.00013698,2]
[380020423,1755479451617,-400.0,0.00013698,2]
[380020424,1755479451626,-400.0,0.00013698,2]
[380020425,1755479451635,-400.0,0.00013698,2]
[380020426,1755479451644,-400.0,0.00013698,2]
[380020427,1755479451653,-400.0,0.00013698,2]
[380020428,1755479451662,-280.529224,0.00013698,2]
[380020429,1755479451671,-400.0,0.00013698,2]
[380020430,1755479451680,-400.0,0.00013698,2]
[380020431,1755479451689,-400.0,0.00013698,2]
[380020432,1755479451698,-1020.3,0.00013698,2]
[380020433,1755479451707,-400.0,0.00013698,2]
[380020434,1755479451716,-406.71805489,0.00013698,2]
[380020435,1755479451726,-400.0,0.00013698,2]
[380020436,1755479451735,-400.0,0.00013698,2]
[380020437,1755479451744,-400.0,0.00013698,2]
[380020438,1755479451753,-1071.66,0.00013698,2]
[380020439,1755479451767,-400.0,0.00013698,2]
[380020440,1755479451782,-400.0,0.00013698,2]
[380020441,1755479451792,-400.0,0.00013698,2]
[380020442,1755479451801,-400.0,0.00013698,2]
[380020443,1755479451811,-415.54,0.00013698,2]
[380020444,1755479451821,-197.97375,0.00013698,2]
[380020445,1755479451830,-151.0,0.00013698,2]
[380020446,1755479451840,-400.0,0.00013698,2]
[380020447,1755479451850,-877.38,0.00013698,2]
[380020448,1755479451859,-400.0,0.00013698,2]
[380020449,1755479451868,-197.97375,0.00013698,2]
[380020450,1755479451877,-400.0,0.00013698,2]
[380020451,1755479451887,-1777.33,0.00013698,2]
[380020452,1755479451896,-400.0,0.00013698,2]
[380020453,1755479451905,-579.09,0.00013698,2]
[380020454,1755479451915,-400.0,0.00013698,2]
[380020455,1755479451924,-400.0,0.00013698,2]
[380020456,1755479451933,-151.0,0.00013698,2]
[380020457,1755479451942,-400.0,0.00013698,2]
[380020458,1755479451951,-400.0,0.00013698,2]
[380020459,1755479451960,-400.0,0.00013698,2]
[380020460,1755479451970,-400.0,0.00013698,2]
[380020461,1755479451979,-520.34,0.00013698,2]
[380020462,1755479451988,-1375.6,0.00013698,2]
[380020463,1755479451997,-400.0,0.00013698,2]
[380020464,1755479452007,-1382.0,0.00013698,2]
[380020465,1755479452016,-592.56,0.00013698,2]
[380020466,1755479452026,-283.60233,0.00013698,2]
[380020467,1755479452035,-400.0,0.00013698,2]
[380020468,1755479452044,-588.45,0.00013698,2]
[380020469,1755479452053,-283.60233,0.00013698,2]